Workbook

Sheet IŠLAIDŲ DUOMENYS IR DIAGRAMA
B1: IŠLAIDŲ ANALIZĖ – PARETO DIAGRAMA
B2: Pareto diagrama, skirta kaupiamajai metinių išlaidų procentinei daliai visuose išlaidų centruose apskaičiuoti, pateikta langeliuose nuo B2 iki E3.
B4: IŠLAIDŲ ANALIZĖ
B5: Išlaidų centras | C5: Metinės išlaidos | D5: Bendrosios sumos procentinė dalis | E5: Kaupiamasis procentas
B6: Dalys ir medžiagos | C6: 1,325,000.00 EUR | D6: =IFERROR(Duomenys[[#This Row],[Metinės išlaidos ]]/SUM(Duomenys[[Metinės išlaidos ]]), "") -> 31.17% | E6: =IFERROR(SUM(INDEX(Duomenys[Bendrosios sumos procentinė dalis],1):Duomenys[[#This Row],[Bendrosios sumos procentinė dalis]]), "") -> 31.17%
B7: Gamybos įranga | C7: 900,500.00 EUR | D7: =IFERROR(Duomenys[[#This Row],[Metinės išlaidos ]]/SUM(Duomenys[[Metinės išlaidos ]]), "") -> 21.19% | E7: =IFERROR(SUM(INDEX(Duomenys[Bendrosios sumos procentinė dalis],1):Duomenys[[#This Row],[Bendrosios sumos procentinė dalis]]), "") -> 52.36%
B8: Atlyginimai | C8: 575,000.00 EUR | D8: =IFERROR(Duomenys[[#This Row],[Metinės išlaidos ]]/SUM(Duomenys[[Metinės išlaidos ]]), "") -> 13.53% | E8: =IFERROR(SUM(INDEX(Duomenys[Bendrosios sumos procentinė dalis],1):Duomenys[[#This Row],[Bendrosios sumos procentinė dalis]]), "") -> 65.89%
B9: Priežiūra | C9: 395,000.00 EUR | D9: =IFERROR(Duomenys[[#This Row],[Metinės išlaidos ]]/SUM(Duomenys[[Metinės išlaidos ]]), "") -> 9.29% | E9: =IFERROR(SUM(INDEX(Duomenys[Bendrosios sumos procentinė dalis],1):Duomenys[[#This Row],[Bendrosios sumos procentinė dalis]]), "") -> 75.18%
B10: Biuro nuoma | C10: 295,000.00 EUR | D10: =IFERROR(Duomenys[[#This Row],[Metinės išlaidos ]]/SUM(Duomenys[[Metinės išlaidos ]]), "") -> 6.94% | E10: =IFERROR(SUM(INDEX(Duomenys[Bendrosios sumos procentinė dalis],1):Duomenys[[#This Row],[Bendrosios sumos procentinė dalis]]), "") -> 82.12%
B11: Sandėlio nuoma | C11: 250,000.00 EUR | D11: =IFERROR(Duomenys[[#This Row],[Metinės išlaidos ]]/SUM(Duomenys[[Metinės išlaidos ]]), "") -> 5.88% | E11: =IFERROR(SUM(INDEX(Duomenys[Bendrosios sumos procentinė dalis],1):Duomenys[[#This Row],[Bendrosios sumos procentinė dalis]]), "") -> 88.00%
B12: Draudimas | C12: 180,000.00 EUR | D12: =IFERROR(Duomenys[[#This Row],[Metinės išlaidos ]]/SUM(Duomenys[[Metinės išlaidos ]]), "") -> 4.23% | E12: =IFERROR(SUM(INDEX(Duomenys[Bendrosios sumos procentinė dalis],1):Duomenys[[#This Row],[Bendrosios sumos procentinė dalis]]), "") -> 92.24%
B13: Išmokos ir pensijos | C13: 130,000.00 EUR | D13: =IFERROR(Duomenys[[#This Row],[Metinės išlaidos ]]/SUM(Duomenys[[Metinės išlaidos ]]), "") -> 3.06% | E13: =IFERROR(SUM(INDEX(Duomenys[Bendrosios sumos procentinė dalis],1):Duomenys[[#This Row],[Bendrosios sumos procentinė dalis]]), "") -> 95.29%
B14: Transporto priemonės | C14: 125,000.00 EUR | D14: =IFERROR(Duomenys[[#This Row],[Metinės išlaidos ]]/SUM(Duomenys[[Metinės išlaidos ]]), "") -> 2.94% | E14: =IFERROR(SUM(INDEX(Duomenys[Bendrosios sumos procentinė dalis],1):Duomenys[[#This Row],[Bendrosios sumos procentinė dalis]]), "") -> 98.24%
B15: Tyrimas | C15: 75,000.00 EUR | D15: =IFERROR(Duomenys[[#This Row],[Metinės išlaidos ]]/SUM(Duomenys[[Metinės išlaidos ]]), "") -> 1.76% | E15: =IFERROR(SUM(INDEX(Duomenys[Bendrosios sumos procentinė dalis],1):Duomenys[[#This Row],[Bendrosios sumos procentinė dalis]]), "") -> 100.00%
B16: Suma | C16: =SUBTOTAL(109,Duomenys[[Metinės išlaidos ]]) -> 4,250,500.00 EUR | D16: =SUBTOTAL(109,Duomenys[Bendrosios sumos procentinė dalis]) -> 100.00%
